bitfinex-derivatives/quotes_ETHF0:USTF0_20210111
["timestamp","ask_amount","ask_price","bid_price","bid_amount"]
[1610351146832,1.9124,1076.2,1074.7,32.082]
[1610351147229,2.1697,1076.2,1074.7,32.082]
[1610351147629,2.1697,1076.2,1076.1,4.00959]
[1610351148029,2.1697,1076.2,1074.8,1.41179705]
[1610351148030,2.1697,1076.2,1075.0,1.5434]
[1610351149136,2.1697,1076.2,1075.1,1.41175102]
[1610351149534,2.1697,1076.2,1076.1,4.00959]
[1610351150537,2.1697,1076.2,1076.1,5.42115689]
[1610351152335,4.00959,1077.1,1076.1,5.42115689]
[1610351153237,4.00959,1077.1,1076.1,1.41156689]
[1610351153438,4.00959,1077.1,1076.2,1.41141746]
[1610351153637,4.00959,1076.5,1076.2,1.41141746]
[1610351154038,6.09489,1076.5,1076.2,1.41141746]
[1610351154640,6.09489,1076.5,1075.3,55.0256]
[1610351154641,6.09489,1076.5,1075.4,1.41146708]
[1610351154838,2.0853,1076.5,1075.4,1.41146708]
[1610351155642,4.00959,1075.8,1075.5,4.00959]
[1610351156239,4.00959,1075.8,1075.4,1.41146708]
[1610351157640,4.00959,1075.5,1075.4,1.41146708]
[1610351158039,6.45729,1075.5,1075.4,1.41146708]
[1610351159740,6.45729,1075.5,1075.3,52.8073]
[1610351159941,6.45729,1075.5,1073.8,141.6813]
[1610351159942,6.45729,1075.5,1070.5,30.0]
[1610351160144,6.45729,1075.5,1070.5,31.6141]
[1610351160944,6.45729,1075.5,1070.5,1.6141]
[1610351161742,5.76969,1071.8,1070.5,1.6141]
[1610351161942,5.76969,1071.8,1069.5,6.811]
[1610351162141,5.76969,1071.8,1069.5,36.811]
[1610351162544,5.76969,1071.8,1068.2,3.405]
[1610351163145,5.76969,1071.8,1068.3,30.0]
[1610351163444,5.76969,1071.8,1068.3,31.7369]
[1610351163642,4.00959,1070.0,1069.3,4.00959]
[1610351164544,1.9098,1070.6,1069.3,4.00959]
[1610351164744,1.9098,1070.6,1069.3,5.96179]
[1610351165645,4.00959,1070.2,1069.3,1.9522]
[1610351165846,6.34289,1070.2,1068.7,2.1401]
[1610351166847,6.34289,1070.2,1066.7,3.405]
[1610351167652,2.3333,1070.2,1068.3,4.00959]
[1610351168751,2.3333,1070.2,1067.4,1.4991]
[1610351169152,74.9089,1070.2,1067.4,1.4991]
[1610351169752,4.00959,1068.6,1068.4,4.00959]
[1610351169952,6.20759,1068.6,1067.4,1.4991]
[1610351170255,6.20759,1068.6,1067.2,59.68]
[1610351171755,2.198,1068.6,1067.3,4.00959]
[1610351171962,2.198,1068.6,1067.2,59.68]
[1610351173657,4.00959,1067.3,1067.2,59.68]
[1610351173857,5.81659,1067.3,1067.2,59.68]
[1610351175158,1.807,1067.3,1067.2,59.68]
[1610351175659,1.807,1067.3,1067.2,63.68959]
[1610351175861,1.807,1067.3,1067.2,59.68]
[1610351176861,2.4075,1067.7,1067.2,59.68]
[1610351177062,1.9096,1067.6,1067.2,59.68]
[1610351177662,4.00959,1067.3,1067.2,59.68]
[1610351178061,6.28369,1067.3,1067.2,59.68]
[1610351178272,2.2741,1067.3,1067.2,59.68]
[1610351178469,1.9096,1067.6,1067.2,59.68]
[1610351178663,1.9096,1067.6,1066.6,59.1335]
[1610351179762,1.9096,1067.6,1067.5,4.00959]
[1610351180470,1.9096,1067.6,1066.6,59.1335]
[1610351181766,4.00959,1067.3,1066.6,59.1335]
[1610351181967,6.14289,1067.3,1066.6,59.1335]
[1610351183667,6.14289,1067.3,1066.7,4.00959]
[1610351185170,2.1333,1067.3,1066.7,4.00959]
[1610351185771,2.1333,1067.3,1066.9,4.00959]
[1610351186374,1.7325,1068.0,1066.9,4.00959]
[1610351186574,11.5342184,1067.2,1066.9,4.00959]
[1610351186774,2.198,1068.6,1066.9,4.00959]
[1610351186978,0.93085,1074.3,1066.9,4.00959]
[1610351187178,34.961,1511.9,1066.9,4.00959]
[1610351187676,4.00959,1069.8,1068.7,4.00959]
[1610351188077,9.74261537,1069.5,1068.7,4.00959]
[1610351189275,1.7237,1069.5,1068.8,1.42213059]
[1610351189676,1.7237,1069.5,1069.0,4.00959]
[1610351189876,1.7237,1069.5,1068.8,1.42213059]
[1610351191077,1.7237,1069.5,1068.3,1.42283539]
[1610351191778,4.00959,1068.4,1068.3,1.42283539]
[1610351191978,2.0334,1068.4,1068.3,1.42283539]
[1610351192380,2.0334,1068.4,1067.8,4.00959]
[1610351193779,2.0334,1068.4,1068.3,4.00959]
[1610351194180,2.0334,1068.4,1067.9,1.42243387]
[1610351195379,2.0334,1068.4,1067.6,1.4223919]
[1610351195781,2.0334,1068.4,1068.3,4.00959]
[1610351196083,2.0334,1068.4,1067.6,1.4223919]
[1610351196684,2.0334,1068.4,1068.3,1.42285811]
[1610351197084,4.00959,1068.6,1068.3,1.42285811]
[1610351197884,4.00959,1068.4,1068.3,1.42285811]
[1610351198084,5.86559,1068.4,1066.9,77.7097]
[1610351199887,4.00959,1067.6,1066.9,77.7097]
[1610351200085,6.14729,1067.6,1066.9,77.7097]
[1610351200986,6.14729,1067.6,1067.0,1.42489952]
[1610351201786,4.00959,1067.1,1067.0,1.42489952]
[1610351201986,4.00959,1067.1,1063.7,2.1832]
[1610351201987,6.16539,1067.1,1063.7,2.1832]
[1610351202990,6.16539,1067.1,1061.9,6.284]
[1610351203791,2.1558,1067.1,1063.3,4.00959]
[1610351204192,2.1558,1067.1,1063.2,2.0967]
[1610351205792,4.00959,1063.9,1063.7,4.00959]
[1610351206593,6.41569,1063.9,1060.7,6.1854]
[1610351206794,6.41569,1063.9,1062.1,76.8345]
[1610351206995,6.41569,1063.9,1062.1,78.4728]
[1610351207196,1.5918,1064.2,1062.1,78.4728]
[1610351207795,1.5918,1064.2,1063.8,4.00959]
[1610351208595,62.2534,1064.7,1063.8,6.27729]
[1610351209396,62.7066,1066.4,1063.8,6.27729]
[1610351209797,4.00959,1065.9,1065.4,4.00959]
[1610351209995,2.3819,1065.9,1065.4,4.00959]
[1610351210599,1.5696,1066.2,1065.4,4.00959]
[1610351211403,62.7066,1066.4,1065.4,4.00959]
[1610351211604,2.1558,1067.1,1065.4,4.00959]
[1610351212003,11.46947,1079.2,1067.0,4.00959]
[1610351212201,11.46947,1079.2,1067.0,5.72599]
[1610351212404,11.46947,1079.2,1067.0,5.70599]
[1610351212603,6.1428,1079.1,1067.0,5.70599]
[1610351213002,3.405,1073.4,1067.0,5.70599]
[1610351213201,11.39495623,1073.3,1067.0,5.70599]
[1610351213603,20.26465623,1073.3,1067.0,5.70599]
[1610351213904,4.00959,1068.7,1068.4,4.00959]
[1610351214104,4.00959,1068.7,1067.0,1.7164]
[1610351214105,5.94119,1068.7,1067.0,1.7164]
[1610351215303,5.94119,1068.7,1066.3,2.18454451]
[1610351215503,5.94119,1068.7,1066.2,2.18994591]
[1610351215902,4.00959,1067.2,1066.9,4.00959]
[1610351216304,1.7064,1068.2,1066.9,4.00959]
[1610351216503,1.7064,1068.2,1066.9,6.14859]
[1610351217907,4.00959,1067.7,1066.9,6.14859]
[1610351218107,1.7064,1068.2,1066.9,4.00959]
[1610351219809,1.7064,1068.2,1066.4,1.7829]
[1610351220009,4.00959,1067.1,1066.4,1.7829]
[1610351221111,6.01309,1067.1,1066.4,1.7829]
[1610351221312,6.01309,1067.1,1066.2,68.7591]
[1610351221913,4.00959,1066.3,1066.2,68.7591]
[1610351223615,2.3297,1066.4,1066.2,68.7591]
[1610351225515,2.3297,1066.4,1065.5,2.1858]
[1610351225915,4.00959,1066.3,1065.7,4.00959]
[1610351226314,2.3297,1066.4,1065.7,4.00959]
[1610351226714,2.0035,1067.1,1065.7,4.00959]
[1610351226918,2.0123,1067.4,1065.7,4.00959]
[1610351227115,77.4129,1068.2,1065.7,4.00959]
[1610351227916,4.00959,1067.2,1066.8,4.00959]
[1610351228117,2.3798,1067.2,1066.8,4.00959]
[1610351228517,2.3798,1067.2,1065.5,4.30148433]
[1610351228717,2.3798,1067.2,1065.5,2.1858]
[1610351229618,2.3798,1067.2,1065.3,52.8273]
[1610351229817,11.4756084,1067.1,1065.3,52.8273]
[1610351230017,4.00959,1065.4,1065.3,52.8273]
[1610351234633,6.00759,1065.4,1065.3,52.8273]
[1610351235031,6.00759,1065.4,1064.0,60.4603]
[1610351236033,4.00959,1064.1,1064.0,60.4603]
[1610351236433,1.8194,1064.5,1064.0,60.4603]
[1610351239336,1.8194,1064.5,1063.4,2.352]
[1610351239938,1.8194,1064.5,1064.1,4.00959]
[1610351240538,4.00959,1064.7,1064.1,4.00959]
[1610351240938,1.998,1065.4,1064.1,4.00959]
[1610351241138,1.9177,1065.7,1064.1,5.71119]
[1610351241339,69.8228,1066.0,1064.1,5.71119]
[1610351241738,69.8228,1066.0,1064.1,1.7016]
[1610351241939,4.00959,1064.2,1064.1,1.7016]
[1610351242740,1.775,1065.2,1064.1,1.7016]
[1610351242943,2.2617,1064.9,1063.7,2.4041]
[1610351243942,2.2617,1064.9,1064.5,4.00959]
[1610351244147,4.00959,1065.1,1063.7,2.4041]
[1610351245348,4.00959,1065.1,1063.5,2.1156345]
[1610351245549,1.775,1065.2,1063.7,2.3614]
[1610351245951,4.00959,1065.1,1064.7,4.00959]
[1610351246651,1.9947,1065.4,1064.7,4.00959]
[1610351247754,6.3709,1071.4,1064.7,4.00959]
[1610351247953,4.00959,1065.7,1065.2,4.00959]
[1610351249057,4.00959,1065.7,1064.5,1.5671]
[1610351249656,1.6297,1065.8,1064.5,1.5671]
[1610351250056,1.6297,1065.8,1065.7,4.00959]
[1610351250460,1.5145,1066.1,1065.7,4.00959]
[1610351250857,10.185,1074.4,1065.7,6.09879]
[1610351251057,6.811,1071.6,1065.7,6.09879]
[1610351252060,6.811,1071.6,1066.9,4.00959]
[1610351252558,11.40097724,1071.5,1066.9,4.00959]
[1610351252759,13.83147724,1071.5,1066.9,4.00959]
[1610351253759,11.38981703,1071.4,1067.2,78.3283]
[1610351254160,4.00959,1068.3,1067.2,78.3283]
[1610351254760,2.0949,1068.5,1067.2,78.3283]
[1610351254960,2.0949,1068.5,1067.2,80.2452]
[1610351256062,4.00959,1069.1,1068.4,4.00959]
[1610351257862,4.00959,1069.1,1067.8,2.2289]
[1610351258061,4.00959,1068.0,1067.9,4.00959]
[1610351258260,2.1392,1069.1,1067.9,4.00959]
[1610351259261,2.1392,1069.1,1068.0,1.42286071]
[1610351260063,4.00959,1068.1,1068.0,1.42286071]
[1610351260264,5.82849,1068.1,1068.0,1.42286071]
[1610351260465,5.82849,1068.1,1067.9,1.42342485]
[1610351261866,5.82849,1068.1,1067.3,1.4261283]
[1610351262066,4.00959,1067.7,1067.3,5.4357183]
[1610351262468,1.7891,1067.7,1067.3,5.4357183]
[1610351263266,1.7891,1067.7,1067.4,1.42587362]
[1610351263467,2.2203,1068.6,1067.4,3.75857362]
[1610351264067,2.2203,1068.6,1068.1,4.00959]
[1610351264671,2.1392,1069.1,1068.1,4.00959]
[1610351265076,2.4305,1071.5,1068.1,6.11079]
[1610351265277,0.96417,1073.6,1068.1,6.11079]
[1610351265476,0.96417,1073.6,1068.1,2.1012]
[1610351265679,6.811,1074.4,1068.1,2.1012]
[1610351266080,4.00959,1069.6,1068.8,4.00959]
[1610351266477,5.93459,1069.6,1068.8,4.00959]
[1610351267178,5.93459,1069.6,1068.9,1.42177964]
[1610351267378,5.93459,1069.6,1068.9,3.20287964]
[1610351268181,4.00959,1069.0,1068.9,3.20287964]
[1610351268379,1.925,1069.6,1068.9,3.20287964]
[1610351268881,1.925,1069.6,1069.0,1.42197881]
[1610351270181,4.00959,1070.4,1069.2,4.00959]
[1610351270382,1.7227,1070.4,1069.2,4.00959]
[1610351270583,10.216,1077.4,1069.2,4.00959]
[1610351270783,10.216,1077.4,1069.2,6.07329]
[1610351271183,3.405,1077.4,1069.2,6.07329]
[1610351271483,8.60942502,1077.3,1069.3,1.42040698]
[1610351271683,10.57222502,1077.3,1069.3,1.42040698]
[1610351272183,4.00959,1071.0,1069.8,4.00959]
[1610351272787,4.00959,1071.0,1069.9,1.41980841]
[1610351273186,1.9628,1077.3,1069.9,3.81210841]
[1610351274088,4.00959,1072.3,1072.0,4.00959]
[1610351274487,2.4543,1072.3,1072.0,4.00959]
[1610351275690,2.4543,1072.3,1069.9,2.3923]
[1610351276090,2.4543,1072.3,1071.4,4.00959]
[1610351278095,4.00959,1071.6,1071.4,4.00959]
[1610351278496,1.8825,1071.8,1071.4,4.00959]
[1610351279095,1.8825,1071.8,1070.8,2.1338]
[1610351280095,4.00959,1071.1,1070.7,4.00959]
[1610351280295,4.00959,1071.1,1069.9,2.3923]
[1610351280494,4.00959,1071.1,1069.2,2.0637]
[1610351280695,4.00959,1071.1,1069.0,2.10229028]
[1610351281096,4.00959,1071.1,1070.0,1.41981163]
[1610351282299,4.00959,1070.1,1070.0,1.41981163]
[1610351282499,5.51919,1070.1,1069.9,1.42059952]
[1610351284001,5.51919,1070.1,1069.5,129.0012]
[1610351284202,4.00959,1069.6,1069.5,129.0012]
[1610351284604,5.77349,1069.6,1066.9,2.09043214]
[1610351284802,5.77349,1069.6,927.0,3.98799765]
[1610351284803,5.77349,1069.6,1066.8,2.09531656]
[1610351285004,5.77349,1069.6,1066.5,2.09391922]
[1610351285203,5.77349,1069.6,1067.0,1.42300564]
[1610351285406,5.77349,1069.6,1067.0,3.21710564]
[1610351286208,1.7639,1069.6,1067.9,4.00959]
[1610351287009,1.7639,1069.6,1067.3,1.5156]
[1610351287911,1.7639,1069.6,1067.4,1.42301261]
[1610351288311,4.00959,1068.5,1068.4,4.00959]
[1610351288511,2.2047,1068.9,1068.4,4.00959]
[1610351289612,1.5096,1070.1,1068.4,4.00959]
[1610351289812,72.7581,1071.1,1068.4,4.00959]
[1610351290212,72.7581,1071.1,1069.4,4.00959]
[1610351291317,2.268,1071.3,1069.4,4.00959]
[1610351291615,58.2913,1072.0,1069.4,4.00959]
[1610351291814,6.4014,1071.7,1068.9,62.6033]
[1610351292016,8.2356,1071.7,1068.9,62.6033]
[1610351292220,4.00959,1069.1,1068.9,62.6033]
[1610351292819,5.79269,1069.1,1068.9,62.6033]
[1610351294118,5.79269,1069.1,1067.9,72.9325]
[1610351294319,4.00959,1068.0,1067.9,72.9325]
[1610351294920,1.9961,1068.1,1068.0,1.42478531]
[1610351296218,1.9961,1068.1,1068.0,5.43437531]
[1610351296421,4.00959,1068.5,1068.0,5.43437531]
[1610351296620,1.7831,1069.1,1068.0,5.43437531]
[1610351296819,1.7831,1069.1,1068.0,1.42478531]
[1610351297920,1.7703,1069.7,1068.0,1.42478531]
[1610351298322,12.0207,1071.6,1069.3,4.00959]
[1610351299120,12.0207,1071.6,1069.4,1.42220195]
[1610351299321,66.8064,1071.3,1069.4,1.42220195]
[1610351300221,4.00959,1069.5,1069.4,1.42220195]
[1610351300420,5.89059,1069.5,1069.0,4.00959]
[1610351300620,1.881,1069.5,1069.0,4.00959]
[1610351301824,1.881,1069.5,1069.1,1.42211505]
[1610351302324,1.881,1069.5,1069.4,4.00959]
[1610351302723,1.8714,1070.0,1069.4,4.00959]
[1610351302923,1.844,1070.3,1069.4,4.00959]
[1610351303124,11.46942,1079.3,1069.4,5.43116295]
[1610351303724,11.46942,1079.3,1069.4,1.42157295]
[1610351303725,1.8576,1072.3,1069.4,1.42157295]
[1610351304027,1.8519,1071.5,1069.4,1.42157295]
[1610351304225,4.00959,1069.5,1069.4,1.42157295]
[1610351304425,5.68969,1069.5,1069.4,1.42157295]
[1610351305628,7.54899,1069.5,1069.4,1.42157295]
[1610351306128,7.54899,1069.5,1068.7,1.42415718]
[1610351306328,4.00959,1068.8,1068.7,1.42415718]
[1610351306530,6.08329,1068.8,1068.7,1.42415718]
[1610351308930,6.08329,1068.8,1066.8,1.42371708]
[1610351309530,7.96319,1068.8,1066.8,1.42371708]
[1610351309930,6.08329,1068.8,1066.8,1.42371708]
[1610351310329,4.00959,1067.3,1066.3,159.2729]
[1610351311732,4.00959,1067.3,1066.4,1.42484195]
[1610351312131,4.00959,1067.3,1066.4,3.85964195]
[1610351312331,4.00959,1066.5,1066.4,3.85964195]
[1610351313431,1.8241,1067.3,1066.4,3.85964195]
[1610351314233,1.8241,1067.3,1067.2,4.00959]
[1610351314432,4.00959,1067.8,1067.2,4.00959]
[1610351315632,1.869,1070.3,1067.2,4.00959]
[1610351315835,1.8662,1071.1,1067.3,1.4242216]
[1610351316034,1.8593,1071.8,1067.3,1.4242216]
[1610351316434,4.00959,1068.8,1068.6,4.00959]
[1610351316634,4.00959,1068.8,1067.3,1.4242216]
[1610351317035,2.144,1069.1,1067.3,1.4242216]
[1610351317234,2.144,1069.1,1067.1,2.3259]
[1610351317634,2.1242,1069.4,1067.1,2.3259]
[1610351317934,2.1242,1069.4,1067.2,2.24430199]
[1610351318234,2.1242,1069.4,1067.3,2.24628254]
[1610351318434,2.1242,1069.4,1069.3,4.00959]
[1610351318634,4.00959,1070.2,1069.3,5.58469]
[1610351318834,4.00959,1070.2,1069.3,1.5751]
[1610351320035,4.00959,1070.2,1069.4,1.42218722]
[1610351320435,4.00959,1069.5,1069.4,1.42218722]
[1610351321536,1.6073,1070.5,1069.4,1.42218722]
[1610351322336,1.6073,1070.5,1070.3,4.00959]
[1610351322841,1.6073,1070.5,1069.6,2.1133]
[1610351324140,1.6073,1070.5,1069.7,1.42173683]
[1610351324343,4.00959,1070.0,1069.9,4.00959]
[1610351324742,1.6073,1070.5,1069.9,4.00959]
[1610351325649,62.102,1070.9,1070.0,1.42179973]
[1610351326446,62.102,1070.9,1070.6,4.00959]
[1610351328445,62.102,1070.9,1070.8,4.00959]
[1610351328847,4.00959,1071.2,1070.8,4.00959]
[1610351329248,4.00959,1071.2,1070.7,1.42113025]
[1610351329851,4.00959,1071.2,1070.2,67.9189]
[1610351330249,5.86569,1071.2,1070.2,67.9189]
[1610351330448,4.00959,1070.3,1070.2,67.9189]
[1610351335953,4.00959,1070.3,1070.2,65.934]
[1610351336153,4.00959,1070.3,1067.4,2.29104884]
[1610351336352,1.9101,1070.5,1067.8,4.00959]
[1610351336353,4.00959,1068.3,1067.8,4.00959]
[1610351336952,1.499,1069.1,1067.8,4.00959]
[1610351337154,1.499,1069.1,1067.8,5.86839]
[1610351338153,1.8733,1070.3,1067.9,1.42283569]
[1610351338353,4.00959,1069.7,1069.1,4.00959]
[1610351338754,1.6701,1069.7,1069.1,4.00959]
[1610351339354,1.6701,1069.7,1069.2,1.42227364]
[1610351339755,2.2394,1070.0,1069.2,1.42227364]
[1610351340555,2.2394,1070.0,1069.8,4.00959]
[1610351340856,2.2394,1070.0,1069.2,1.42227364]
[1610351342457,4.00959,1069.3,1069.2,1.42227364]
[1610351343657,4.00959,1069.3,1068.6,59.4723]
[1610351343658,4.00959,1069.3,1068.7,1.42337929]
[1610351344457,4.00959,1068.8,1068.7,1.42337929]
[1610351344857,4.00959,1068.8,1068.6,59.4723]
[1610351346859,4.00959,1068.8,1068.0,0.01]
[1610351347258,6.2339,1068.7,1068.0,0.01]
[1610351347660,63.5205,1068.1,1068.0,0.01]
[1610351347862,65.1065,1068.1,1068.0,0.01]
[1610351348560,69.11609,1068.1,1068.0,0.01]
[1610351350360,67.53009,1068.1,1068.0,0.01]
[1610351351960,4.00959,1068.1,1068.0,0.01]
[1610351354861,5.90279,1068.1,1068.0,0.01]
[1610351355061,4.00959,1068.1,1068.0,0.01]
[1610351356062,5.86819,1068.1,1068.0,0.01]
[1610351357269,4.00959,1068.1,1068.0,0.01]
[1610351358772,5.89229,1068.1,1068.0,0.01]
[1610351360876,4.00959,1068.1,1068.0,0.01]
[1610351363275,4.00959,1068.1,1068.0,2.4319]
[1610351367479,4.00959,1068.1,1068.0,0.01]
[1610351378988,4.00959,1068.1,1068.0,2.3087]
[1610351379687,77.3471,1068.4,1068.0,2.3087]
[1610351380489,77.3471,1068.4,1068.3,4.00959]
[1610351380689,4.00959,1069.3,1068.3,6.31519]
[1610351380889,4.00959,1069.3,1068.3,36.31519]
[1610351381089,4.00959,1069.3,1068.3,6.31519]
[1610351382090,4.00959,1069.3,1068.4,1.42408814]
[1610351382490,4.00959,1068.5,1068.4,1.42408814]
[1610351384893,4.00959,1068.5,1068.3,2.3056]
[1610351385792,4.00959,1068.5,1068.0,2.3087]
[1610351386592,4.00959,1068.1,1068.0,2.3087]
[1610351386795,4.00959,1068.1,1068.0,0.01]
[1610351391797,4.00959,1068.1,1068.0,1.8563]
[1610351395703,1.5551,1068.6,1068.0,1.8563]
[1610351395902,69.7695,1069.0,1068.0,3.28200986]
[1610351396302,68.0031,1069.0,1068.0,3.28200986]
[1610351396701,68.0031,1069.0,1068.2,4.00959]
[1610351398702,68.0031,1069.0,1068.3,1.42417859]
[1610351398902,68.0031,1069.0,1068.3,3.18537859]
[1610351399904,68.0031,1069.0,1068.4,1.42496748]
[1610351400705,4.00959,1068.5,1068.4,1.42496748]
[1610351401306,4.00959,1068.5,1068.0,0.01]
[1610351402708,2.3447,1068.6,1068.0,0.01]
[1610351402709,4.00959,1068.1,1068.0,0.01]
[1610351403310,4.00959,1068.1,1067.1,76.8014]
[1610351403509,4.00959,1068.1,1067.2,30.0]
[1610351403709,4.00959,1068.1,1067.2,32.3258]
[1610351404108,4.00959,1068.1,1067.2,33.75116315]
[1610351404709,4.00959,1068.4,1067.9,4.00959]
[1610351404911,74.2489,1069.1,1067.9,6.16429]
[1610351405510,1.5614,1069.3,1067.9,6.16429]
[1610351405711,1.5614,1069.3,1068.0,1.42470344]
[1610351406311,82.69,1070.3,1068.0,31.42470344]
[1610351406711,4.00959,1069.2,1068.5,4.00959]
[1610351406911,4.00959,1069.2,1068.6,30.0]
[1610351407312,2.1984,1069.7,1068.6,32.4321]
[1610351408112,76.672,1070.3,1068.6,32.4321]
[1610351408312,77.7774,1070.9,1068.7,1.42298835]
[1610351408713,4.00959,1070.0,1069.6,4.00959]
[1610351409312,4.00959,1070.0,1068.7,1.42298835]
[1610351409912,4.00959,1070.0,1069.7,1.42275702]
[1610351410712,4.00959,1069.8,1069.7,1.42275702]
[1610351411112,4.00959,1069.8,1069.4,1.42290959]
[1610351412612,4.00959,1069.6,1069.4,1.42290959]
[1610351413814,2.3444,1070.4,1069.4,1.42290959]
[1610351414215,2.2006,1070.9,1069.4,1.42290959]
[1610351414415,6.3749,1071.3,1069.4,1.42290959]
[1610351414616,4.00959,1070.5,1070.0,4.00959]
[1610351415418,5.92419,1070.5,1070.1,1.42272306]
[1610351416222,1.9146,1070.5,1070.1,1.42272306]
[1610351416419,30.0,1075.1,1070.1,1.42272306]
[1610351416619,35.9803,1075.1,1070.1,1.42272306]
[1610351416819,4.00959,1070.7,1070.1,1.42272306]
[1610351417020,6.03459,1070.7,1070.1,1.42272306]
[1610351418721,6.03459,1070.7,1070.4,4.00959]
[1610351419319,6.03459,1070.7,1070.1,1.42272306]
[1610351419520,6.03459,1070.7,1069.8,2.1719]
[1610351420722,4.00959,1070.5,1070.2,4.00959]
[1610351421822,4.00959,1070.5,1069.8,2.1719]
[1610351422422,4.00959,1070.5,1069.3,2.1042]
[1610351422623,4.00959,1070.5,1068.2,30.0]
[1610351422822,4.00959,1069.8,1068.6,174.3574]
[1610351423024,4.00959,1069.8,1067.9,10.82004965]
[1610351423025,4.00959,1069.8,1067.9,2.1547]
[1610351423422,4.00959,1069.8,1067.6,2.28821688]
[1610351423622,4.00959,1069.8,1068.7,1.42350539]
[1610351423823,4.00959,1069.8,1068.7,3.28280539]
[1610351424824,4.00959,1068.8,1068.7,3.28280539]
[1610351425024,4.00959,1068.8,1068.7,1.8593]
[1610351426423,4.00959,1068.8,1068.7,1.42420956]
[1610351427823,6.10149,1068.8,1068.3,1.42493515]
[1610351428724,4.00959,1068.4,1068.3,1.42493515]
[1610351430124,4.00959,1068.4,1068.2,68.9521]
[1610351430324,4.00959,1068.4,1068.3,1.42406594]
[1610351431326,1.9001,1069.1,1068.3,1.42406594]
[1610351431525,1.9231,1069.7,1068.3,1.42406594]
[1610351431728,1.5185,1070.0,1068.3,1.42406594]
[1610351431926,18.28055,1079.2,1068.3,1.42406594]
[1610351432126,21.68555,1079.2,1068.3,1.42406594]
[1610351432326,78.1368,1069.5,1068.3,1.42406594]
[1610351432528,79.7296,1069.5,1068.3,1.42406594]
[1610351432726,4.00959,1068.4,1068.3,1.42406594]
[1610351433330,4.00959,1068.4,1068.2,1.42372411]
[1610351435029,2.0895,1069.2,1068.2,1.42372411]
[1610351436731,4.00959,1068.3,1068.2,1.42372411]
[1610351441241,4.00959,1068.3,1067.9,1.42433924]
[1610351442842,4.00959,1068.3,1067.9,5.43392924]
[1610351443243,2.0895,1069.2,1067.9,35.43392924]
[1610351443442,68.0857,1069.3,1067.9,35.43392924]
[1610351443844,68.0857,1069.3,1067.9,5.43392924]
[1610351444043,68.0857,1069.3,1068.0,1.42335902]
[1610351444843,4.00959,1068.2,1068.0,1.42335902]
[1610351448245,2.3106,1069.2,1068.0,1.42335902]
[1610351448844,4.00959,1068.3,1068.0,1.42335902]
[1610351450847,4.00959,1068.1,1068.0,1.42335902]
[1610351455649,6.17539,1068.1,1068.0,1.42335902]
[1610351458257,6.17539,1068.1,1067.9,9.052]
[1610351460661,74.39059,1068.1,1066.5,72.7632]
[1610351460861,4.00959,1066.6,1066.5,72.7632]
[1610351462365,4.00959,1066.6,1066.5,74.18969821]
[1610351465066,4.00959,1066.6,1066.5,72.7632]
[1610351469074,4.00959,1066.6,1064.7,2.2666]
[1610351470076,70.554,1066.0,1063.8,60.0011]
[1610351470476,72.1136,1066.0,1063.8,60.0011]
[1610351470875,72.1136,1066.0,1064.1,1.42926209]
[1610351471076,4.00959,1065.1,1064.1,1.42926209]
[1610351471478,5.92729,1065.1,1064.1,1.42926209]
[1610351473080,4.00959,1065.1,1064.5,4.00959]
[1610351474080,2.3231,1065.5,1064.5,4.00959]
[1610351474280,1.5596,1066.0,1065.0,1.7021]
[1610351474680,1.493,1066.7,1065.0,1.7021]
[1610351475182,4.00959,1066.2,1066.1,4.00959]
[1610351475383,4.00959,1066.2,1065.0,1.7021]
[1610351476185,5.85979,1066.2,1065.0,1.7021]
[1610351476385,5.85979,1066.2,1066.1,1.4271574]
[1610351477586,5.85979,1066.2,1065.8,1.42721531]
[1610351477787,4.00959,1066.2,1065.8,1.42721531]
[1610351479086,4.00959,1065.9,1065.8,1.42721531]
[1610351479686,1.7282,1066.9,1065.8,1.42721531]
[1610351480488,1.8505,1070.1,1065.8,1.42721531]
[1610351481186,4.00959,1066.6,1066.3,4.00959]
[1610351482188,1.9047,1067.4,1066.3,4.00959]
[1610351482387,1.9047,1067.4,1066.3,5.80609]
[1610351483189,4.00959,1067.0,1066.8,4.00959]
[1610351483988,4.00959,1067.0,1066.4,1.42557836]
[1610351485188,4.00959,1067.0,1066.6,4.00959]
[1610351485389,4.00959,1067.0,1066.6,6.18089]
[1610351485989,2.3887,1067.7,1066.7,1.42587599]
[1610351487190,2.3887,1067.7,1067.2,4.00959]
[1610351487392,2.3887,1067.7,1066.9,2.3903]
[1610351487592,4.00959,1067.8,1066.9,2.3903]
[1610351488693,4.00959,1067.8,1067.0,1.42587991]
[1610351489094,4.00959,1067.1,1067.0,1.42587991]
[1610351489893,4.00959,1067.1,1066.7,1.42673108]
[1610351491094,4.00959,1066.8,1066.7,1.42673108]
[1610351491498,6.44169,1066.8,1066.7,1.42673108]
[1610351491897,6.44169,1066.8,1065.8,1.42796694]
[1610351493098,4.00959,1065.9,1064.6,4.00959]
[1610351493299,5.73749,1065.9,1064.6,4.00959]
[1610351494400,5.73749,1065.9,1064.7,1.42787008]
[1610351494799,4.00959,1065.9,1064.7,1.42787008]
[1610351495200,4.00959,1065.1,1064.7,1.42787008]
[1610351496002,2.0936,1066.0,1064.7,1.42787008]
[1610351496202,2.0936,1066.0,1064.8,1.5654]
[1610351496401,1.5022,1066.3,1064.8,1.5654]
[1610351497202,4.00959,1065.1,1064.9,1.42771346]
[1610351497601,1.5022,1066.3,1064.9,1.42771346]
[1610351498003,2.4321,1066.8,1064.9,1.42771346]